lending/lending_fUSD_20260310
["ID","MTS","AMOUNT","RATE_DAILY","PERIOD"]
[408099929,1773146063433,-400.0,0.00047498,30]
[408099930,1773146063460,-400.0,0.00047498,30]
[408099931,1773146063487,-400.0,0.00047498,30]
[408099932,1773146063515,-485.91049712,0.00047498,30]
[408099933,1773146063543,-101834.58797174,0.00047498,120]
[408099934,1773146063570,-21555.23315659,0.00047498,120]
[408099935,1773146063597,-20178.65198354,0.00047498,120]
[408099936,1773146063624,-1025.5397,0.00047498,30]
[408099937,1773146063650,-150.0,0.00047498,120]
[408099938,1773146063676,-2953.49053607,0.00047498,30]
[408099939,1773146063702,-5000.0,0.00047498,120]
[408099940,1773146063728,-1000.0,0.00047498,120]
[408099941,1773146063759,-5000.0,0.00047498,30]
[408099942,1773146063786,-5000.0,0.00047498,30]
[408099943,1773146063814,-5000.0,0.00047498,30]
[408099944,1773146063843,-5000.0,0.00047498,30]
[408099945,1773146063877,-5000.0,0.00047498,30]
[408099946,1773146063906,-5000.0,0.00047498,120]
[408099947,1773146063934,-5000.0,0.00047498,120]
[408099948,1773146063961,-5000.0,0.00047498,120]
[408099949,1773146063992,-5000.0,0.00047498,120]
[408099950,1773146064018,-5000.0,0.00047498,120]
[408099951,1773146064046,-1933.85184028,0.00047498,30]
[408099952,1773146064073,-4943.23848298,0.00047498,120]
[408099953,1773146064099,-2159.75,0.00047498,120]
[408099954,1773146064127,-2159.75,0.00047498,120]
[408099955,1773146064153,-2159.75,0.00047498,120]
[408099956,1773146064180,-2159.75,0.00047498,120]
[408099957,1773146064210,-2159.75,0.00047498,120]
[408099958,1773146064237,-2159.75,0.00047498,120]
[408099959,1773146064265,-2159.75,0.00047498,120]
[408099960,1773146064294,-2159.75,0.00047498,120]
[408099961,1773146064319,-2159.75,0.00047498,120]
[408099962,1773146064344,-2159.75,0.00047498,120]
[408099963,1773146064369,-2159.75,0.00047498,120]
[408099964,1773146064395,-2159.75,0.00047498,120]
[408099965,1773146064424,-2159.75,0.00047498,120]
[408099966,1773146064454,-2159.75,0.00047498,120]
[408099967,1773146064480,-2159.75,0.00047498,120]
[408099968,1773146064507,-2159.75,0.00047498,120]
[408099969,1773146064534,-2159.75,0.00047498,120]
[408099970,1773146064560,-2159.75,0.00047498,120]
[408099971,1773146064585,-2159.75,0.00047498,120]
[408099972,1773146064610,-2159.75,0.00047498,120]
[408099973,1773146064636,-2159.75,0.00047498,120]
[408099974,1773146064663,-2159.75,0.00047498,120]
[408099975,1773146064688,-2159.75,0.00047498,120]
[408099976,1773146064714,-2159.87022704,0.00047498,120]
[408099977,1773146064742,-1281.20240674,0.00047498,120]
[408099978,1773146064769,-3850.39,0.00047498,120]
[408099979,1773146064795,-338478.0,0.00047498,120]
[408099980,1773146064821,-314262.03,0.00047498,120]
[408099981,1773146064849,-505.95811655,0.00047498,120]
[408099982,1773146064874,-39177.23043666,0.00047498,49]
[408099983,1773146064900,-240.00000826,0.00047498,120]
[408099984,1773146064926,-1785.46946929,0.00047498,120]
[408099985,1773146064953,-2362.69800638,0.00047498,120]
[408099986,1773146064978,-2277.55513705,0.00047498,120]
[408099987,1773146065004,-83000.0,0.00047498,30]
[408099988,1773146065032,-2721.09,0.00047498,120]
[408099989,1773146065059,-2721.09,0.00047498,120]
[408099990,1773146065085,-2721.09,0.00047498,120]
[408099991,1773146065124,-2721.09,0.00047498,120]
[408099992,1773146065153,-2721.09,0.00047498,120]
[408099993,1773146065180,-2721.09,0.00047498,120]
[408099994,1773146065206,-2721.09,0.00047498,120]
[408099995,1773146065232,-2721.09,0.00047498,120]
[408099996,1773146065258,-2721.09,0.00047498,120]
[408099997,1773146065285,-2721.09,0.00047498,120]
[408099998,1773146065689,-2721.09,0.00047498,120]
[408099999,1773146065716,-2721.09,0.00047498,120]
[408100000,1773146065742,-2721.09,0.00047498,120]
[408100001,1773146065768,-2721.09,0.00047498,120]
[408100002,1773146065799,-2721.09,0.00047498,120]
[408100003,1773146065826,-2721.09,0.00047498,120]
[408100004,1773146065857,-2721.09,0.00047498,120]
[408100005,1773146065884,-2721.09,0.00047498,120]
[408100006,1773146065912,-2721.09,0.00047498,120]
[408100007,1773146065938,-2721.09,0.00047498,120]
[408100008,1773146065964,-2721.09,0.00047498,120]
[408100009,1773146065989,-2721.09,0.00047498,120]
[408100010,1773146066014,-2721.09,0.00047498,120]
[408100011,1773146066042,-2721.13321574,0.00047498,120]
[408100012,1773146066068,-250040.0,0.00047498,120]
[408100013,1773146066093,-49990.0,0.00047498,120]
[408100014,1773146066119,-5000.0,0.00047498,90]
[408100015,1773146066145,-5000.0,0.00047498,60]
[408100016,1773146066171,-5000.0,0.00047498,30]
[408100017,1773146066196,-5000.0,0.00047498,30]
[408100018,1773146066221,-1000.0,0.00047498,120]
[408100019,1773146066246,-1200.0,0.00047498,120]
[408100020,1773146066275,-1200.0,0.00047498,120]
[408100021,1773146066300,-1000.0,0.00047498,120]
[408100022,1773146066325,-1000.0,0.00047498,120]
[408100023,1773146066350,-1000.0,0.00047498,120]
[408100024,1773146066377,-500.0,0.00047498,120]
[408100025,1773146066404,-500.0,0.00047498,120]
[408100026,1773146066431,-500.0,0.00047498,120]
[408100027,1773146066457,-500.0,0.00047498,120]
[408100028,1773146066486,-500.0,0.00047498,120]
[408100029,1773146066513,-500.0,0.00047498,120]
[408100030,1773146066540,-500.0,0.00047498,120]
[408100031,1773146066566,-500.0,0.00047498,120]
[408100032,1773146066592,-500.0,0.00047498,120]
[408100033,1773146066618,-500.0,0.00047498,120]
[408100034,1773146066645,-500.0,0.00047498,120]
[408100035,1773146066670,-500.0,0.00047498,120]
[408100036,1773146066697,-500.0,0.00047498,120]
[408100037,1773146066722,-500.0,0.00047498,120]
[408100038,1773146066748,-500.0,0.00047498,120]
[408100039,1773146066774,-500.0,0.00047498,120]
[408100040,1773146066800,-500.0,0.00047498,120]
[408100041,1773146066825,-500.0,0.00047498,120]
[408100042,1773146066853,-500.0,0.00047498,120]
[408100043,1773146066878,-500.0,0.00047498,120]
[408100044,1773146066904,-5000.76935457,0.00047498,120]
[408100045,1773146066929,-10000.0,0.00047498,31]
[408100046,1773146066956,-5000.0,0.00047498,37]
[408100047,1773146066981,-2000.0,0.00047498,31]
[408100048,1773146067006,-4185.73,0.00047498,120]
[408100049,1773146067030,-21592.046082,0.00047498,120]
[408100050,1773146067056,-2043865.58706259,0.00047498,60]
[408100051,1773146067082,-20000.0,0.00047498,120]
[408100052,1773146067107,-131124.29074279,0.00047498,30]
[408100053,1773146073911,-874305.96413571,0.00047498,30]
[408100054,1773146073938,-10000.0,0.00047498,60]
[408100055,1773146073963,-10000.0,0.00047498,90]
[408100056,1773146073987,-10000.0,0.00047498,90]
[408100057,1773146074014,-10000.0,0.00047498,120]
[408100058,1773146074038,-124068.32166656,0.00047498,30]
[408100059,1773146074061,-63912.04059589,0.00047498,30]
[408100060,1773146074086,-50000.0,0.00047498,30]
[408100061,1773146074112,-50000.0,0.00047498,34]
[408100062,1773146074137,-50000.0,0.00047498,39]
[408100063,1773146074163,-50000.0,0.00047498,42]
[408100064,1773146074191,-50000.0,0.00047498,45]
[408100065,1773146074217,-14408.2445715,0.00047498,30]
[408100066,1773146074245,-4076.14203158,0.00047498,30]
[408100067,1773146074271,-2642.9709909,0.00047498,120]
[408100068,1773146074294,-251408.61506059,0.00047498,30]
[408100069,1773146074319,-41592.55,0.00047498,30]
[408100070,1773146074343,-41500.0,0.00047498,30]
[408100071,1773146074368,-4443.1,0.00047498,30]
[408100072,1773146074395,-1587286.19335789,0.00047498,30]
[408100073,1773146074422,-22495.0,0.00047498,60]
[408100074,1773146074450,-217.0,0.00047498,120]
[408100075,1773146074475,-5000.0,0.00047498,120]
[408100076,1773146074499,-3518.59188555,0.00047498,120]
[408100077,1773146074523,-532.40601849,0.00047498,120]
[408100078,1773146074548,-1198.22459095,0.00047498,120]
[408100079,1773146074571,-1161.03907384,0.00047498,60]
[408100080,1773146074596,-3045.59258422,0.00047498,30]
[408100081,1773146074619,-155.28121933,0.00047498,120]
[408100082,1773146074645,-212.5,0.00047498,30]
[408100083,1773146074671,-500.0,0.00047498,120]
[408100084,1773146074696,-500.0,0.00047498,120]
[408100085,1773146074731,-449.86251459,0.00047498,120]
[408100086,1773146074759,-176.04857828,0.00047498,120]
[408100087,1773146074784,-293.28287308,0.00047498,60]
[408100088,1773146074810,-265.0,0.00047498,120]
[408100089,1773146074835,-115577.35,0.00047498,30]
[408100090,1773146074860,-5818.9069298,0.00047498,120]
[408100091,1773146074885,-2373.90760351,0.00047498,120]
[408100092,1773146074911,-173.65535794,0.00047498,120]
[408100093,1773146074938,-3554.0,0.00047498,120]
[408100094,1773146074964,-41012.86478096,0.00047498,30]
[408100095,1773146074991,-239.29170879,0.00047498,120]
[408100096,1773146075019,-2807.5840766,0.00047498,120]
[408100097,1773146075045,-150.9115631,0.00047498,30]
[408100098,1773146075071,-8141.32617064,0.00047498,120]
[408100099,1773146075096,-4749.97906141,0.00047498,30]
[408100100,1773146075122,-44898.31256245,0.00047498,30]
[408100101,1773146075153,-4640.97490406,0.00047498,30]
[408100102,1773146075180,-465.55656728,0.00047498,120]
[408100103,1773146075207,-164.48257172,0.00047498,120]
[408100104,1773146075234,-282.8488798,0.00047498,120]
[408100105,1773146075261,-11053.92015899,0.00047498,60]
[408100106,1773146075288,-2424.56,0.00047498,120]
[408100107,1773146075314,-938760.0,0.00047498,60]
[408100108,1773146075340,-13644.5931648,0.00047498,120]
[408100109,1773146075366,-3479.76111276,0.00047498,30]
[408100110,1773146075393,-525.18541127,0.00047498,120]
[408100111,1773146075420,-927.30369762,0.00047498,120]
[408100112,1773146075447,-2188.67,0.00047498,120]
[408100113,1773146075474,-3800.81091424,0.00047498,120]
[408100114,1773146075501,-2079.256542,0.00047498,90]
[408100115,1773146075528,-18423.94749036,0.00047498,120]
[408100116,1773146075558,-7641.85340437,0.00047498,120]
[408100117,1773146075586,-2433.59,0.00047498,30]
[408100118,1773146075613,-18716.81990972,0.00047498,120]
[408100119,1773146075640,-227.32,0.00047498,30]
[408100120,1773146075668,-3600.64037524,0.00047498,120]
[408100121,1773146075697,-10062.0,0.00047498,120]
[408100122,1773146075730,-6567.65002336,0.00047498,60]
[408100123,1773146075765,-204.92052,0.00047498,60]
[408100124,1773146075794,-10000.0,0.00047498,60]
[408100125,1773146075825,-1109.0,0.00047498,30]
[408100126,1773146075855,-1109.0,0.00047498,30]
[408100127,1773146075886,-1109.0,0.00047498,30]
[408100128,1773146075917,-1109.0,0.00047498,30]
[408100129,1773146075945,-1109.0,0.00047498,30]
[408100130,1773146075972,-2840.88122446,0.00047498,120]
[408100131,1773146075998,-300.0,0.00047498,120]
[408100132,1773146076024,-5000.0,0.00047498,38]
[408100133,1773146076054,-2200.0,0.00047498,30]
[408100134,1773146076080,-2093.30323012,0.00047498,120]
[408100135,1773146076105,-1007.46586982,0.00047498,30]
[408100136,1773146076132,-4326.18080031,0.00047498,60]
[408100137,1773146076158,-1351.0,0.00047498,120]
[408100138,1773146076183,-37540.2201035,0.00047498,30]
[408100139,1773146076209,-28626.3812308,0.00047498,120]
[408100140,1773146076235,-1030.47,0.00047498,120]
[408100141,1773146076267,-48276.38,0.00047498,120]
[408100142,1773146076294,-1052.88,0.00047498,120]
[408100143,1773146076321,-177.93250857,0.00047498,60]
[408100144,1773146076349,-5355.0,0.00047498,120]
[408100145,1773146076376,-1109.72170222,0.00047498,30]
[408100146,1773146076404,-1000.0,0.00047498,30]
[408100147,1773146076431,-1000.0,0.00047498,30]
[408100148,1773146076459,-1000.0,0.00047498,120]
[408100149,1773146076486,-1000.0,0.00047498,30]
[408100150,1773146076514,-1000.0,0.00047498,30]
[408100151,1773146076540,-1000.0,0.00047498,60]
[408100152,1773146076851,-1000.0,0.00047498,60]
[408100153,1773146076881,-1000.0,0.00047498,30]
[408100154,1773146076906,-50000.0,0.00047498,60]
[408100155,1773146076931,-1000.0,0.00047498,30]
[408100156,1773146076956,-1000.0,0.00047498,60]
[408100157,1773146076992,-50128.0,0.00047498,120]
[408100158,1773146077019,-1000.0,0.00047498,60]
[408100159,1773146077044,-1000.0,0.00047498,30]
[408100160,1773146077068,-1000.0,0.00047498,60]
[408100161,1773146077093,-1000.0,0.00047498,30]
[408100162,1773146077118,-1000.0,0.00047498,30]
[408100163,1773146077144,-1000.0,0.00047498,60]
[408100164,1773146077170,-1000.0,0.00047498,60]
[408100165,1773146077198,-1000.0,0.00047498,60]
[408100166,1773146077224,-1000.0,0.00047498,120]
[408100167,1773146077250,-1000.0,0.00047498,30]
[408100168,1773146077276,-1081369.0,0.00047498,30]
[408100169,1773146077305,-1083.69361951,0.00047498,120]
[408100170,1773146077331,-5628.18841745,0.00047498,120]
[408100171,1773146077357,-78778.43965457,0.00047498,30]
[408100172,1773146077383,-100000.0,0.00047498,120]
[408100173,1773146077410,-1409.4502833,0.00047498,30]
[408100174,1773146077435,-377.03129285,0.00047498,120]
[408100175,1773146077460,-1109.0,0.00047498,30]
[408100176,1773146077486,-3477.18814065,0.00047498,120]
[408100177,1773146077512,-1109.0,0.00047498,30]
[408100178,1773146077538,-17193.5,0.00047498,30]
[408100179,1773146077563,-23670.97915324,0.00047498,120]
[408100180,1773146077588,-759.9,0.00047498,120]
[408100181,1773146077614,-595.5,0.00047498,120]
[408100182,1773146077639,-483.07837555,0.00047498,30]
[408100183,1773146077671,-50000.0,0.00047498,33]
[408100184,1773146077697,-2264.0,0.00047498,30]
[408100185,1773146077721,-153.09831642,0.00047498,120]
[408100186,1773146077746,-2820.47655806,0.00047498,120]
[408100187,1773146077770,-1371.00595623,0.00047498,120]
[408100188,1773146077794,-675.34,0.00047498,120]
[408100189,1773146077818,-675.34,0.00047498,120]
[408100190,1773146077843,-675.34,0.00047498,120]
[408100191,1773146077871,-675.34,0.00047498,120]
[408100192,1773146077896,-675.34,0.00047498,120]
[408100193,1773146077922,-675.34,0.00047498,120]
[408100194,1773146077947,-675.34,0.00047498,120]
[408100195,1773146077970,-675.34,0.00047498,120]
[408100196,1773146077994,-675.34,0.00047498,120]
[408100197,1773146078018,-675.34,0.00047498,120]
[408100198,1773146078041,-675.34,0.00047498,120]
[408100199,1773146078065,-675.34,0.00047498,120]
[408100200,1773146078089,-675.34,0.00047498,120]
[408100201,1773146078112,-675.34,0.00047498,120]
[408100202,1773146078136,-675.34,0.00047498,120]
[408100203,1773146078160,-675.34,0.00047498,120]
[408100204,1773146078184,-675.34,0.00047498,120]
[408100205,1773146078208,-675.34,0.00047498,120]
[408100206,1773146078232,-675.34,0.00047498,120]
[408100207,1773146078255,-675.34,0.00047498,120]
[408100208,1773146078280,-675.34,0.00047498,120]
[408100209,1773146078307,-675.34,0.00047498,120]
[408100210,1773146078332,-675.34,0.00047498,120]
[408100211,1773146078357,-675.4037093,0.00047498,120]
[408100212,1773146078381,-50000.0,0.00047498,67]
[408100213,1773146078406,-516.0,0.00047498,120]
[408100214,1773146078431,-928.34,0.00047498,120]
[408100215,1773146078457,-928.34,0.00047498,120]
[408100216,1773146078483,-928.34,0.00047498,120]
[408100217,1773146078508,-928.34,0.00047498,120]
[408100218,1773146078532,-928.34,0.00047498,120]
[408100219,1773146078558,-928.34,0.00047498,120]
[408100220,1773146078582,-928.34,0.00047498,120]
[408100221,1773146078608,-928.37,0.00047498,120]
[408100222,1773146078632,-565.39,0.00047498,30]
[408100223,1773146078658,-182.02,0.00047498,30]
[408100224,1773146078683,-565.39,0.00047498,30]
[408100225,1773146078714,-50000.0,0.00047498,32]
[408100226,1773146078740,-50000.0,0.00047498,36]
[408100227,1773146078765,-50000.0,0.00047498,37]
[408100228,1773146078792,-50000.0,0.00047498,38]
[408100229,1773146078815,-21881.42273026,0.00047498,120]
[408100230,1773146078839,-1248.11,0.00047498,30]
[408100231,1773146078864,-1247.81,0.00047498,30]
[408100232,1773146078888,-182.06,0.00047498,30]
[408100233,1773146078912,-575.34,0.00047498,30]
[408100234,1773146078937,-473.68,0.00047498,30]
[408100235,1773146078961,-565.54,0.00047498,30]
[408100236,1773146078986,-565.39,0.00047498,30]
[408100237,1773146079010,-565.54,0.00047498,30]
[408100238,1773146079033,-563.15,0.00047498,30]
[408100239,1773146079057,-1248.83,0.00047498,30]
[408100240,1773146079082,-562.46,0.00047498,30]
[408100241,1773146079106,-474.12,0.00047498,30]
[408100242,1773146079131,-562.71,0.00047498,30]
[408100243,1773146079154,-565.6,0.00047498,30]
[408100244,1773146079179,-1248.83,0.00047498,30]
[408100245,1773146079203,-202.1,0.00047498,30]
[408100246,1773146079228,-633.04,0.00047498,30]
[408100247,1773146079252,-647.27,0.00047498,30]
[408100248,1773146079275,-202.62,0.00047498,30]
[408100249,1773146079312,-474.3,0.00047498,30]
[408100250,1773146079339,-474.3,0.00047498,30]
[408100251,1773146079364,-565.6,0.00047498,30]
[408100252,1773146079390,-181.55,0.00047498,30]
[408100253,1773146079416,-565.54,0.00047498,30]
[408100254,1773146079443,-561.34,0.00047498,30]
[408100255,1773146079468,-1248.49,0.00047498,30]
[408100256,1773146079731,-563.25,0.00047498,30]
[408100257,1773146079761,-633.04,0.00047498,30]
[408100258,1773146079787,-181.92,0.00047498,30]
[408100259,1773146079812,-498.49,0.00047498,30]
[408100260,1773146079836,-181.89,0.00047498,30]
[408100261,1773146079862,-563.2,0.00047498,30]
[408100262,1773146079887,-474.12,0.00047498,30]
[408100263,1773146079914,-474.25,0.00047498,30]
[408100264,1773146079940,-477.74,0.00047498,30]
[408100265,1773146079966,-563.44,0.00047498,30]
[408100266,1773146079990,-202.64,0.00047498,30]
[408100267,1773146080015,-563.34,0.00047498,30]
[408100268,1773146080039,-474.25,0.00047498,30]
[408100269,1773146080065,-181.91,0.00047498,30]
[408100270,1773146080089,-202.56,0.00047498,30]
[408100271,1773146080114,-474.12,0.00047498,30]
[408100272,1773146080139,-474.2,0.00047498,30]
[408100273,1773146080163,-474.3,0.00047498,30]
[408100274,1773146080188,-633.04,0.00047498,30]
[408100275,1773146080212,-182.06,0.00047498,30]
[408100276,1773146080237,-564.42,0.00047498,30]
[408100277,1773146080262,-473.28,0.00047498,30]
[408100278,1773146080287,-633.04,0.00047498,30]
[408100279,1773146080311,-473.98,0.00047498,30]
[408100280,1773146080336,-565.54,0.00047498,30]
[408100281,1773146080363,-565.24,0.00047498,30]
[408100282,1773146080388,-202.5,0.00047498,30]
[408100283,1773146080414,-1247.81,0.00047498,30]
[408100284,1773146080439,-562.97,0.00047498,30]
[408100285,1773146080465,-1248.49,0.00047498,30]
[408100286,1773146080491,-633.04,0.00047498,30]
[408100287,1773146080517,-474.07,0.00047498,30]
[408100288,1773146080542,-181.97,0.00047498,30]
[408100289,1773146080567,-151.0,0.00047498,30]
[408100290,1773146080591,-633.08,0.00047498,30]
[408100291,1773146080617,-565.39,0.00047498,30]
[408100292,1773146080643,-565.39,0.00047498,30]
[408100293,1773146080668,-202.62,0.00047498,30]
[408100294,1773146080694,-565.54,0.00047498,30]
[408100295,1773146080720,-202.56,0.00047498,30]
[408100296,1773146080745,-563.39,0.00047498,30]
[408100297,1773146080770,-632.66,0.00047498,30]
[408100298,1773146080795,-181.99,0.00047498,30]
[408100299,1773146080820,-563.44,0.00047498,30]
[408100300,1773146080845,-474.12,0.00047498,30]
[408100301,1773146080876,-1070.19679,0.00047498,120]
[408100302,1773146080903,-633.08,0.00047498,30]
[408100303,1773146080927,-563.25,0.00047498,30]
[408100304,1773146080954,-633.04,0.00047498,30]
[408100305,1773146080978,-633.04,0.00047498,30]
[408100306,1773146081003,-1248.11,0.00047498,30]
[408100307,1773146081027,-1248.83,0.00047498,30]
[408100308,1773146081053,-181.64,0.00047498,30]
[408100309,1773146081077,-182.06,0.00047498,30]
[408100310,1773146081101,-563.25,0.00047498,30]
[408100311,1773146081126,-633.08,0.00047498,30]
[408100312,1773146081151,-565.54,0.00047498,30]
[408100313,1773146081176,-182.06,0.00047498,30]
[408100314,1773146081200,-473.73,0.00047498,30]
[408100315,1773146081225,-204.41,0.00047498,30]
[408100316,1773146081251,-563.25,0.00047498,30]
[408100317,1773146081277,-484.94,0.00047498,30]
[408100318,1773146081302,-181.97,0.00047498,30]
[408100319,1773146081328,-565.6,0.00047498,30]
[408100320,1773146081353,-202.6,0.00047498,30]
[408100321,1773146081377,-633.04,0.00047498,30]
[408100322,1773146081403,-473.99,0.00047498,30]
[408100323,1773146081427,-563.44,0.00047498,30]
[408100324,1773146081452,-563.39,0.00047498,30]
[408100325,1773146081477,-151.0,0.00047498,30]
[408100326,1773146081501,-474.25,0.00047498,30]
[408100327,1773146081526,-563.25,0.00047498,30]
[408100328,1773146081551,-202.56,0.00047498,30]
[408100329,1773146081576,-182.04,0.00047498,30]
[408100330,1773146081601,-151.0,0.00047498,30]
[408100331,1773146081626,-633.04,0.00047498,30]
[408100332,1773146081651,-1248.83,0.00047498,30]
[408100333,1773146081676,-633.04,0.00047498,30]
[408100334,1773146081703,-633.04,0.00047498,30]
[408100335,1773146081728,-564.9,0.00047498,30]
[408100336,1773146081754,-473.64,0.00047498,30]
[408100337,1773146081779,-151.0,0.00047498,30]
[408100338,1773146081803,-1248.83,0.00047498,30]
[408100339,1773146081827,-151.0,0.00047498,30]
[408100340,1773146081852,-202.5,0.00047498,30]
[408100341,1773146081880,-151.49,0.00047498,30]
[408100342,1773146081904,-151.0,0.00047498,30]
[408100343,1773146081930,-1248.83,0.00047498,30]
[408100344,1773146081955,-204.23,0.00047498,30]
[408100345,1773146081981,-182.04,0.00047498,30]
[408100346,1773146082006,-151.0,0.00047498,30]
[408100347,1773146082030,-563.44,0.00047498,30]
[408100348,1773146082055,-194.56,0.00047498,30]
[408100349,1773146082079,-151.0,0.00047498,30]
[408100350,1773146082103,-202.64,0.00047498,30]
[408100351,1773146082128,-633.04,0.00047498,30]
[408100352,1773146082152,-563.34,0.00047498,30]
[408100353,1773146082177,-181.99,0.00047498,30]
[408100354,1773146082201,-563.39,0.00047498,30]
[408100355,1773146082225,-564.82,0.00047498,30]
[408100356,1773146082251,-151.0,0.00047498,30]
[408100357,1773146082275,-1248.87,0.00047498,30]
[408100358,1773146082300,-1248.49,0.00047498,30]
[408100359,1773146082325,-151.0,0.00047498,30]
[408100360,1773146082350,-202.5,0.00047498,30]
[408100361,1773146082571,-151.0,0.00047498,30]
[408100362,1773146082596,-633.08,0.00047498,30]
[408100363,1773146082624,-460.02,0.00047498,120]
[408100364,1773146082654,-151.0,0.00047498,30]
[408100365,1773146082680,-151.0,0.00047498,30]
[408100366,1773146082707,-562.75,0.00047498,30]
[408100367,1773146082732,-18535.13360786,0.00047498,120]
[408100368,1773146082756,-202.25,0.00047498,30]
[408100369,1773146082781,-181.94,0.00047498,30]
[408100370,1773146082806,-1248.87,0.00047498,30]
[408100371,1773146082830,-151.0,0.00047498,30]
[408100372,1773146082858,-631.85,0.00047498,30]
[408100373,1773146082886,-202.56,0.00047498,30]
[408100374,1773146082913,-564.17,0.00047498,30]
[408100375,1773146082939,-633.04,0.00047498,30]
[408100376,1773146082964,-182.04,0.00047498,30]
[408100377,1773146082990,-151.0,0.00047498,30]
[408100378,1773146083015,-1248.83,0.00047498,30]
[408100379,1773146083194,-181.77,0.00047498,30]
[408100380,1773146083221,-151.0,0.00047498,30]
[408100381,1773146083245,-182.02,0.00047498,30]
[408100382,1773146083270,-151.0,0.00047498,30]
[408100383,1773146083295,-565.39,0.00047498,30]
[408100384,1773146083320,-1246.76,0.00047498,30]
[408100385,1773146083344,-1248.49,0.00047498,30]
[408100386,1773146083369,-181.94,0.00047498,30]
[408100387,1773146083393,-202.29,0.00047498,30]
[408100388,1773146083419,-1248.49,0.00047498,30]
[408100389,1773146083444,-151.0,0.00047498,30]
[408100390,1773146083469,-473.92,0.00047498,30]
[408100391,1773146083494,-633.04,0.00047498,30]
[408100392,1773146083519,-565.54,0.00047498,30]
[408100393,1773146083545,-1248.83,0.00047498,30]
[408100394,1773146083575,-202.56,0.00047498,30]
[408100395,1773146083600,-474.25,0.00047498,30]
[408100396,1773146083626,-182.06,0.00047498,30]
[408100397,1773146083653,-563.39,0.00047498,30]
[408100398,1773146083681,-151.0,0.00047498,30]
[408100399,1773146083707,-633.04,0.00047498,30]
[408100400,1773146083733,-1248.87,0.00047498,30]
[408100401,1773146083758,-1248.83,0.00047498,30]
[408100402,1773146083783,-181.99,0.00047498,30]
[408100403,1773146083807,-498.42,0.00047498,30]
[408100404,1773146083832,-202.64,0.00047498,30]
[408100405,1773146083861,-633.04,0.00047498,30]
[408100406,1773146083885,-151.0,0.00047498,30]
[408100407,1773146083911,-182.06,0.00047498,30]
[408100408,1773146083936,-1248.87,0.00047498,30]
[408100409,1773146083960,-151.0,0.00047498,30]
[408100410,1773146083985,-151.0,0.00047498,30]
[408100411,1773146084011,-1248.45,0.00047498,30]
[408100412,1773146084037,-151.0,0.00047498,30]
[408100413,1773146084065,-632.7,0.00047498,30]
[408100414,1773146084091,-151.0,0.00047498,30]
[408100415,1773146084116,-182.06,0.00047498,30]
[408100416,1773146084142,-202.64,0.00047498,30]
[408100417,1773146084168,-632.87,0.00047498,30]
[408100418,1773146084192,-565.6,0.00047498,30]
[408100419,1773146084218,-181.92,0.00047498,30]
[408100420,1773146084243,-151.0,0.00047498,30]
[408100421,1773146084270,-151.0,0.00047498,30]
[408100422,1773146084295,-1247.73,0.00047498,30]
[408100423,1773146084320,-202.54,0.00047498,30]
[408100424,1773146084344,-151.0,0.00047498,30]
[408100425,1773146084370,-474.3,0.00047498,30]
[408100426,1773146084395,-1278.22,0.00047498,30]
[408100427,1773146084422,-151.0,0.00047498,30]
[408100428,1773146084448,-300.0,0.00047498,30]